bitfinex/quotes_BTCUSD_20250328
["timestamp","ask_amount","ask_price","bid_price","bid_amount"]
[1743192288334,0.0001688,84008.0,84006.0,0.24998]
[1743192288818,0.0001688,84008.0,84004.0,0.249981]
[1743192288819,0.0001688,84008.0,84004.0,0.238083]
[1743192288995,0.0001688,84008.0,84006.0,0.238077]
[1743192289655,0.0001688,84008.0,84007.0,0.011903]
[1743192290728,0.0001688,84008.0,84007.0,0.013903]
[1743192291357,0.0001688,84008.0,84007.0,0.251978]
[1743192294686,0.0001688,84008.0,84007.0,0.002]
[1743192294886,0.0001688,84008.0,84007.0,0.240075]
[1743192295094,0.0001688,84008.0,84007.0,0.251978]
[1743192300286,0.0001688,84008.0,84007.0,0.002]
[1743192300914,0.3293438,84008.0,84007.0,0.002]
[1743192301248,0.3174408,84008.0,84007.0,0.002]
[1743192301450,0.0001688,84008.0,84007.0,0.251978]
[1743192302294,0.0001688,84008.0,84007.0,0.240075]
[1743192302544,0.0001688,84008.0,84007.0,0.251978]
[1743192304292,0.0001688,84008.0,84007.0,0.240075]
[1743192309282,0.0001688,84008.0,84007.0,0.002]
[1743192310099,0.2382408,84008.0,84007.0,0.002]
[1743192310494,0.2501438,84008.0,84007.0,0.002]
[1743192311106,0.36126583,84008.0,84007.0,0.002]
[1743192312395,0.2501438,84008.0,84007.0,0.002]
[1743192312806,0.2382408,84008.0,84007.0,0.002]
[1743192313426,0.0001688,84008.0,84007.0,0.002]
[1743192313604,0.0001688,84008.0,84007.0,0.0023376]
[1743192313802,0.2382408,84008.0,84007.0,0.0023376]
[1743192313964,0.0001688,84008.0,84007.0,0.0023376]
[1743192314964,0.0001688,84008.0,84007.0,0.2546964]
[1743192315174,0.0001688,84008.0,84007.0,0.2523156]
[1743192316356,0.0001688,84008.0,84007.0,0.0023376]
[1743192316486,0.5501438,84008.0,84007.0,0.0023376]
[1743192316682,0.56217145,84008.0,84007.0,0.0023376]
[1743192316890,0.79068673,84008.0,84007.0,0.0023376]
[1743192317302,0.87168673,84008.0,84007.0,0.0023376]
[1743192317931,0.87168673,84008.0,84007.0,6e-07]
[1743192318730,1.21642511,84008.0,84007.0,6e-07]
[1743192319470,1.21942511,84008.0,84007.0,6e-07]
[1743192320929,1.24310773,84008.0,84007.0,6e-07]
[1743192323009,1.11430924,84008.0,84007.0,6e-07]
[1743192325757,1.24970924,84008.0,84007.0,6e-07]
[1743192327221,1.11430924,84008.0,84007.0,6e-07]
[1743192327471,1.24966924,84008.0,84007.0,6e-07]
[1743192328348,1.26421009,84008.0,84007.0,6e-07]
[1743192328589,1.37846773,84008.0,84007.0,6e-07]
[1743192329037,1.24966924,84008.0,84007.0,6e-07]
[1743192329895,1.2683843,84008.0,84007.0,6e-07]
[1743192330358,1.2653843,84008.0,84007.0,6e-07]
[1743192330552,1.2703843,84008.0,84007.0,6e-07]
[1743192333023,1.26580355,84008.0,84007.0,6e-07]
[1743192334343,1.38006119,84008.0,84007.0,6e-07]
[1743192334898,1.36138613,84008.0,84007.0,6e-07]
[1743192335330,1.36114613,84008.0,84007.0,6e-07]
[1743192337371,1.38614613,84008.0,84007.0,6e-07]
[1743192337511,1.40085578,84008.0,84007.0,6e-07]
[1743192337717,0.550047,83984.0,83983.0,0.0004706]
[1743192337914,0.86498054,83984.0,83983.0,0.0004706]
[1743192338135,0.79954464,83984.0,83983.0,0.0004706]
[1743192338332,2.3502609,83984.0,83983.0,6e-07]
[1743192338558,2.37461315,83984.0,83983.0,6e-07]
[1743192339131,2.37461315,83984.0,83954.0,0.0792]
[1743192339132,0.250127,83957.0,83954.0,0.0792]
[1743192339334,0.79962464,83957.0,83956.0,0.00078177]
[1743192340504,0.79962464,83957.0,83956.0,0.00278177]
[1743192340738,0.81830776,83957.0,83956.0,0.00278177]
[1743192341156,0.83010843,83957.0,83956.0,0.00278177]
[1743192341303,0.69214012,83957.0,83956.0,0.00278177]
[1743192341687,0.69210012,83957.0,83956.0,0.00278177]
[1743192341943,0.70401012,83957.0,83956.0,0.00278177]
[1743192342145,0.56881012,83957.0,83956.0,0.00278177]
[1743192342345,0.58043911,83957.0,83956.0,0.00278177]
[1743192342704,0.71559911,83957.0,83956.0,0.00278177]
[1743192342903,0.73925493,83957.0,83956.0,0.00278177]
[1743192343106,0.60409493,83957.0,83956.0,0.00278177]
[1743192343319,0.73929493,83957.0,83956.0,0.00278177]
[1743192343527,0.72766594,83957.0,83956.0,0.00278177]
[1743192344193,0.59246594,83957.0,83956.0,0.00278177]
[1743192344394,0.72762594,83957.0,83956.0,0.00278177]
[1743192345027,0.69703282,83957.0,83956.0,0.00278177]
[1743192345229,0.238196,83965.0,83960.0,0.01191]
[1743192345429,0.43516,83964.0,83960.0,0.238206]
[1743192345670,0.43516,83964.0,83963.0,0.2382]
[1743192345874,0.13516,83964.0,83961.0,0.0466]
[1743192346297,0.13516,83964.0,83963.0,0.2382]
[1743192346510,0.15874414,83964.0,83962.0,0.2382]
[1743192346844,0.15874414,83964.0,83963.0,0.25011]
[1743192347426,0.15874414,83964.0,83961.0,0.0466]
[1743192347625,0.238201,83963.0,83961.0,0.0466]
[1743192347862,0.15874414,83964.0,83962.0,0.238202]
[1743192348062,0.15874414,83964.0,83961.0,0.0466]
[1743192348176,0.15874414,83964.0,83963.0,0.2382]
[1743192348378,0.130542,83968.0,83963.0,0.25011]
[1743192348582,0.238189,83967.0,83964.0,0.238197]
[1743192349027,0.23785354,83967.0,83964.0,0.238197]
[1743192349260,0.542742,83970.0,83965.0,0.011909]
[1743192349445,0.02426727,83965.0,83961.0,0.0466]
[1743192349648,0.250101,83966.0,83961.0,0.284805]
[1743192349855,0.238192,83966.0,83962.0,0.238202]
[1743192350058,0.238186,83968.0,83962.0,0.01191]
[1743192350233,0.02428161,83966.0,83964.0,0.238196]
[1743192350420,0.02428161,83966.0,83965.0,0.238194]
[1743192350823,0.02428161,83966.0,83965.0,0.332103]
[1743192351045,0.01868071,83970.0,83969.0,0.238183]
[1743192351477,0.25686071,83970.0,83966.0,0.238188]
[1743192351675,0.01868071,83970.0,83968.0,0.238185]
[1743192351878,0.01868071,83970.0,83967.0,0.238186]
[1743192352106,0.01868071,83970.0,83965.0,0.332103]
[1743192352107,0.04268756,83970.0,83965.0,0.332103]
[1743192352642,0.238187,83968.0,83965.0,0.320194]
[1743192354571,0.238187,83968.0,83965.0,0.082]
[1743192355085,0.238189,83967.0,83965.0,0.082]
[1743192355517,0.238191,83966.0,83965.0,0.082]
[1743192355741,0.238202,83962.0,83961.0,0.0466]
[1743192355942,0.238202,83962.0,83960.0,0.0003376]
[1743192355943,0.250115,83961.0,83960.0,0.0003376]
[1743192356144,0.66437264,83961.0,83960.0,0.0003376]
[1743192357670,0.550115,83961.0,83960.0,0.0003376]
[1743192358886,0.551115,83961.0,83960.0,0.0003376]
[1743192362213,0.56979772,83961.0,83960.0,0.0003376]
[1743192365026,0.001,83961.0,83960.0,0.1300376]
[1743192365197,0.001,83961.0,83960.0,0.3801556]
[1743192365818,0.238199,83964.0,83961.0,0.238204]
[1743192366224,0.238199,83964.0,83961.0,0.237204]
[1743192366423,0.238205,83961.0,83960.0,0.1300376]
[1743192366624,0.238203,83962.0,83960.0,0.1300376]
[1743192367084,0.238205,83961.0,83960.0,0.1300376]
[1743192368438,0.238205,83963.0,83960.0,0.1300376]
[1743192368569,0.238205,83963.0,83960.0,0.3682446]
[1743192368772,0.238205,83963.0,83960.0,0.3692446]
[1743192369403,0.238205,83963.0,83960.0,0.3682446]
[1743192369781,0.238202,83964.0,83960.0,0.1310376]
[1743192369782,0.238205,83961.0,83960.0,0.1310376]
[1743192370778,0.238205,83961.0,83960.0,0.1300376]
[1743192370973,0.2382,83963.0,83960.0,0.3682456]
[1743192371354,0.01868147,83961.0,83960.0,0.3682456]
[1743192371958,0.01868147,83961.0,83960.0,0.3811556]
[1743192374917,0.0001689,83967.0,83966.0,0.2501]
[1743192375822,0.0001689,83967.0,83965.0,0.238194]
[1743192376032,0.2393589,83967.0,83964.0,0.250105]
[1743192376368,0.0011689,83967.0,83966.0,0.2501]
[1743192376903,0.0001689,83967.0,83966.0,0.2501]
[1743192377471,0.0001689,83967.0,83966.0,0.238191]
[1743192377871,0.0001689,83967.0,83966.0,0.2501]
[1743192378281,0.0011689,83967.0,83966.0,0.2501]
[1743192378878,0.0001689,83967.0,83966.0,0.2501]
[1743192379179,0.0001689,83967.0,83966.0,0.2511]
[1743192382606,0.0001689,83967.0,83966.0,0.26472407]
[1743192382815,0.0001689,83967.0,83966.0,0.3262]
[1743192383808,0.0001689,83967.0,83966.0,0.48805764]
[1743192383980,0.0001689,83967.0,83966.0,0.50259849]
[1743192384186,0.0001689,83967.0,83966.0,0.50759849]
[1743192384399,9e-07,83967.0,83966.0,0.80759849]
[1743192384768,0.0001689,83983.0,83982.0,0.39659385]
[1743192384969,0.0001689,83983.0,83982.0,0.51183199]
[1743192386037,0.00021328,83983.0,83982.0,0.51183199]
[1743192386441,0.00021328,83983.0,83982.0,0.51383199]
[1743192386791,0.00021328,83983.0,83982.0,0.53605815]
[1743192388104,0.00021328,83983.0,83982.0,0.51383199]
[1743192389172,2.8e-07,83983.0,83982.0,0.82800229]
[1743192389591,2.8e-07,83983.0,83982.0,0.82600229]
[1743192389795,2.8e-07,83983.0,83982.0,0.82800229]
[1743192390211,2.8e-07,83983.0,83982.0,0.84815648]
[1743192391608,2.8e-07,83983.0,83982.0,0.85315648]
[1743192392105,0.0001688,84008.0,84007.0,0.249978]
[1743192392305,0.0001688,84008.0,84007.0,0.3303711]
[1743192392506,0.0001688,84008.0,84007.0,0.44462874]
[1743192393338,0.0001688,84008.0,84007.0,0.44662874]
[1743192396277,0.0001688,84008.0,84007.0,0.45832486]
[1743192398206,0.0001688,84008.0,84007.0,0.47286571]
[1743192398821,0.0001688,84008.0,84007.0,0.48177713]
[1743192399027,0.0001688,84008.0,84007.0,0.47977713]
[1743192399297,0.0001688,84008.0,84007.0,0.48377713]
[1743192401958,0.0001688,84008.0,84007.0,0.89627713]
[1743192402376,0.0001688,84008.0,84007.0,1.19627713]
[1743192402595,0.0001688,84008.0,84007.0,1.20127713]
[1743192404046,0.0001688,84008.0,84007.0,1.19727713]
[1743192404449,0.0001688,84008.0,84007.0,1.20227713]
[1743192404847,0.0001688,84008.0,84007.0,1.19727713]
[1743192405254,0.0001688,84008.0,84007.0,1.20327713]
[1743192409071,0.0001688,84008.0,84007.0,1.33987713]
[1743192413082,0.0001688,84008.0,84007.0,1.35854213]
[1743192413277,0.0001688,84008.0,84007.0,1.36558812]
[1743192414715,5e-07,84016.0,84015.0,0.637154]
[1743192414928,0.00013363,84016.0,84015.0,0.81125249]
[1743192416035,0.00013363,84016.0,84015.0,0.84686172]
[1743192416236,0.00013363,84016.0,84015.0,0.85390771]
[1743192417125,0.00013363,84016.0,84015.0,0.85990771]
[1743192417352,0.00013363,84016.0,84015.0,0.82429848]
[1743192417570,0.00013363,84016.0,84015.0,0.81829848]
[1743192417803,0.00013363,84016.0,84015.0,0.82958804]
[1743192418031,0.00013363,84016.0,84015.0,0.83558804]
[1743192419475,0.00013363,84016.0,84015.0,1.24808804]
[1743192419981,6.3e-07,84016.0,84015.0,1.24808804]
[1743192420725,6.3e-07,84016.0,84015.0,1.39868804]
[1743192421149,0.0001689,84041.0,84040.0,0.67008]
[1743192421352,0.0001689,84041.0,84040.0,1.91568506]
[1743192422374,0.0001689,84041.0,84040.0,1.93402061]
[1743192422545,0.00021643,84041.0,84040.0,1.93402061]
[1743192423566,0.0188749,84041.0,84040.0,1.93402061]
[1743192423771,0.0188749,84041.0,84040.0,1.94311655]
[1743192424626,0.0188749,84041.0,84040.0,1.94911655]
[1743192425237,0.0188749,84041.0,84040.0,1.9609571]
[1743192425464,0.0188749,84041.0,84040.0,1.9798321]
[1743192425830,0.0188749,84041.0,84040.0,1.8433121]
[1743192426038,0.0188749,84041.0,84040.0,1.96938254]
[1743192429829,0.0188749,84041.0,84040.0,1.01220756]
[1743192430041,0.01211443,84041.0,84040.0,0.99333256]
[1743192430478,0.24202063,84041.0,84040.0,0.99333256]
[1743192430681,0.00404163,84041.0,84040.0,0.98628657]
[1743192430881,0.00021643,84041.0,84040.0,0.98028657]
[1743192431107,0.00404163,84041.0,84040.0,0.98528657]
[1743192431289,0.00021643,84041.0,84040.0,1.23516657]
[1743192433094,0.00404163,84041.0,84040.0,1.23516657]
[1743192434273,0.00404163,84041.0,84040.0,0.5727872]
[1743192435071,0.24202063,84041.0,84040.0,0.5727872]
[1743192435193,0.00404163,84041.0,84040.0,0.5727872]
[1743192436194,0.24202063,84041.0,84040.0,0.5727872]
[1743192436410,0.00404163,84041.0,84040.0,0.5677872]
[1743192436820,0.00404163,84041.0,84040.0,0.5727872]
[1743192438043,0.24202063,84041.0,84040.0,0.5727872]
[1743192438839,0.00404163,84041.0,84040.0,0.5727872]
[1743192440136,0.24202063,84041.0,84040.0,0.5727872]
[1743192441322,0.00404163,84041.0,84040.0,0.5727872]
[1743192441766,0.00404163,84041.0,84040.0,0.8226672]
[1743192442209,0.00404163,84041.0,84040.0,0.5727872]
[1743192442416,0.00404163,84041.0,84040.0,0.8107682]
[1743192443241,0.00404163,84041.0,84040.0,0.8226672]
[1743192445350,0.00021643,84041.0,84040.0,0.8226672]
[1743192445573,0.00021643,84041.0,84040.0,0.2558672]
[1743192446353,0.00402604,84041.0,84040.0,0.2558672]
[1743192446676,0.00021643,84041.0,84040.0,0.2558672]
[1743192446851,0.00401382,84041.0,84040.0,0.2558672]
[1743192447054,0.00021643,84041.0,84040.0,0.2558672]
[1743192447248,0.0040139,84041.0,84040.0,0.2558672]
[1743192448838,0.23819543,84041.0,84040.0,0.0059872]
[1743192449044,0.33219343,84041.0,84040.0,0.0059872]
[1743192449238,0.3359909,84041.0,84040.0,0.0059872]
[1743192449446,0.49195029,84041.0,84040.0,0.0059872]
[1743192449657,0.3833909,84041.0,84040.0,0.0059872]
[1743192449855,0.3833909,84041.0,84040.0,0.0009872]
[1743192450253,0.3833909,84041.0,84040.0,0.0039872]
[1743192450414,0.3833909,84041.0,84040.0,0.003]
[1743192450612,0.249907,84031.0,84030.0,0.0009931]
[1743192450821,0.237996,84036.0,84030.0,0.0009931]
[1743192451019,0.238,84034.0,84030.0,0.2509031]
[1743192451294,0.00374758,84033.0,84032.0,0.0119]
[1743192451409,0.00021643,84041.0,84039.0,0.237984]
[1743192451634,0.00374758,84040.0,84037.0,0.249889]
[1743192451834,0.237989,84038.0,84035.0,0.237994]
[1743192452237,0.00374758,84037.0,84035.0,0.237994]
[1743192452741,0.00374758,84037.0,84036.0,0.249892]
[1743192453163,0.01866262,84040.0,84039.0,0.237984]
[1743192453389,0.01866262,84040.0,84039.0,0.249883]
[1743192455443,0.01866262,84040.0,84039.0,0.2508658]
[1743192455648,0.01866262,84040.0,84039.0,0.2518658]
[1743192456432,0.00021643,84041.0,84039.0,0.2518658]
[1743192456433,0.00021643,84041.0,84040.0,0.24988]
[1743192457497,0.00021643,84041.0,84040.0,0.46057849]
[1743192457657,0.00021643,84041.0,84040.0,0.50837849]
[1743192457873,0.00021643,84041.0,84040.0,0.64637849]
[1743192458556,0.00021643,84041.0,84040.0,0.64737849]
[1743192458759,0.00021643,84041.0,84040.0,0.97797786]
[1743192458965,0.00021643,84041.0,84040.0,0.93017786]
[1743192459198,0.00021643,84041.0,84040.0,0.92917786]
[1743192459373,0.00021643,84041.0,84040.0,0.66837937]
[1743192459571,0.01887688,84041.0,84040.0,0.66837937]
[1743192463491,0.01887688,84041.0,84040.0,0.25588]
[1743192465705,0.01887688,84041.0,84040.0,0.006]
[1743192465928,0.02264887,84041.0,84040.0,0.243981]
[1743192466102,0.02264887,84041.0,84040.0,0.25588]
[1743192466508,0.01887688,84041.0,84040.0,0.25588]
[1743192468433,0.01887688,84041.0,84040.0,0.25488]
[1743192468969,0.01887688,84041.0,84040.0,0.25988]
[1743192470480,0.01887688,84041.0,84040.0,0.37413764]
[1743192473941,0.00021643,84041.0,84040.0,0.37413764]
[1743192477061,0.01887456,84041.0,84040.0,1.36003786]
[1743192477511,0.01887456,84041.0,84040.0,1.36708158]
[1743192479974,0.01887456,84041.0,84040.0,1.36692158]
[1743192480917,0.01887456,84041.0,84040.0,1.35987786]
[1743192482455,0.00021643,84041.0,84040.0,1.35987786]
[1743192484032,0.00021643,84041.0,84040.0,1.36192347]
[1743192484457,0.00021643,84041.0,84040.0,1.36292347]
[1743192484678,0.00021643,84041.0,84040.0,1.36892347]
[1743192485658,4.3e-07,84041.0,84040.0,1.36892347]
[1743192485885,4.3e-07,84041.0,84040.0,0.59174022]
[1743192486116,4.3e-07,84041.0,84023.0,3e-07]
[1743192486117,0.011901,84024.0,84023.0,3e-07]
[1743192486320,0.011901,84024.0,83982.0,0.5669778]
[1743192486321,0.549967,84011.0,84010.0,3e-08]
[1743192486534,0.6336502,84011.0,84010.0,3e-08]
[1743192486663,0.73768982,84011.0,84010.0,3e-08]
[1743192486872,0.8978032,84011.0,84010.0,3e-08]
[1743192487074,0.250032,83989.0,83988.0,0.56664]
[1743192487272,0.88707828,83989.0,83988.0,0.56664]
[1743192487501,1.00133592,83989.0,83988.0,0.56664]
[1743192487707,0.80783142,83989.0,83988.0,0.56664]
[1743192487951,0.69215417,83989.0,83988.0,0.5666871]
[1743192488179,0.83211417,83989.0,83988.0,0.5666871]
[1743192488552,0.82849239,83989.0,83988.0,0.5666871]
[1743192488783,0.82849239,83989.0,83988.0,0.5676871]
[1743192488977,0.82841239,83989.0,83988.0,0.5676871]
[1743192489334,0.57427475,83989.0,83988.0,0.5676871]
[1743192489965,0.5929496,83989.0,83988.0,0.5696871]
[1743192490502,0.26870685,83989.0,83988.0,0.5696871]
[1743192490730,0.250032,83989.0,83988.0,0.5696871]
[1743192494127,0.27410458,83992.0,83988.0,0.5696871]
[1743192494128,0.03598458,83992.0,83988.0,0.5696871]
[1743192494344,0.250026,83991.0,83988.0,0.5696871]
[1743192494679,0.238126,83989.0,83988.0,0.5696871]
[1743192495081,0.20437806,83991.0,83988.0,0.5676871]
[1743192495315,0.20437806,83991.0,83988.0,0.5666871]
[1743192495614,0.20437806,83991.0,83988.0,0.5676871]
[1743192495815,0.011906,83990.0,83988.0,0.5676871]
[1743192496654,0.011906,83989.0,83988.0,0.5666871]
[1743192497110,0.011905,83992.0,83988.0,0.5676871]
[1743192497237,0.238125,83990.0,83988.0,0.5676871]
[1743192497447,0.238125,83990.0,83988.0,0.5666871]
[1743192497671,0.250028,83991.0,83988.0,0.5666871]
[1743192497873,0.238124,83990.0,83988.0,0.5686871]
[1743192498100,0.25003,83990.0,83988.0,0.5696871]
[1743192498232,0.25003,83990.0,83988.0,0.5680247]
[1743192498431,0.20817402,83991.0,83988.0,0.5680247]
[1743192498640,0.20817402,83991.0,83988.0,0.5700247]
[1743192498849,0.238124,83990.0,83988.0,0.5700247]
[1743192499059,0.25003,83990.0,83988.0,0.5700247]
[1743192499683,0.22008002,83991.0,83988.0,0.5680247]
[1743192499882,0.238116,83993.0,83988.0,0.5680247]
[1743192500129,0.250021,83993.0,83988.0,0.5680247]
[1743192500778,0.238119,83992.0,83988.0,0.5670247]
[1743192500950,0.250021,83993.0,83988.0,0.5670247]
[1743192501201,0.27428767,83994.0,83989.0,0.238126]
[1743192501592,0.03617567,83994.0,83988.0,0.8051537]
[1743192501817,0.27428767,83994.0,83989.0,0.238126]
[1743192502130,0.001,83992.0,83989.0,0.238126]
[1743192502290,0.001,83992.0,83988.0,0.8061537]
[1743192502490,0.239118,83992.0,83988.0,0.5680247]
[1743192503373,0.238121,83991.0,83988.0,0.5680247]
[1743192503807,0.238121,83991.0,83988.0,0.5670247]
[1743192504007,0.238123,83990.0,83988.0,0.5670247]
[1743192504209,0.238126,83989.0,83988.0,0.5670247]
[1743192504357,0.250032,83989.0,83988.0,0.5670247]
[1743192504758,0.250032,83989.0,83988.0,0.5680247]
[1743192505122,0.238116,83993.0,83988.0,0.5680247]
[1743192505326,0.011905,83993.0,83988.0,0.5680247]
[1743192505541,0.238123,83991.0,83988.0,0.5680247]
[1743192505891,0.238124,83990.0,83988.0,0.5680247]
[1743192506097,0.250032,83989.0,83988.0,0.5680247]
[1743192506442,0.36428964,83989.0,83988.0,0.5670247]
[1743192506557,0.36428964,83989.0,83988.0,0.5680247]
[1743192507008,0.36428964,83989.0,83988.0,0.5670247]
[1743192507208,0.38296351,83989.0,83988.0,0.5670247]
[1743192507789,0.47607303,83989.0,83988.0,0.5670247]
[1743192507990,0.47707303,83989.0,83988.0,0.5670247]
[1743192508593,0.38396351,83989.0,83988.0,0.5670247]
[1743192509817,0.26970587,83989.0,83988.0,0.5670247]
[1743192510621,0.01967387,83989.0,83988.0,0.5670247]
[1743192511021,0.25779987,83989.0,83988.0,0.5670247]
[1743192512306,0.26970587,83989.0,83988.0,0.5670247]
[1743192512437,0.01967387,83989.0,83988.0,0.5670247]
[1743192513959,0.01967387,83989.0,83988.0,0.8051537]
[1743192515347,0.01967387,83989.0,83988.0,0.5670247]
[1743192515918,0.01967387,83989.0,83988.0,0.8051537]
[1743192516126,0.01967387,83989.0,83988.0,0.5670247]
[1743192516762,0.001,83989.0,83988.0,0.5670247]
[1743192517788,0.239126,83989.0,83988.0,0.5670247]
[1743192518707,0.251032,83989.0,83988.0,0.5670247]
[1743192519050,0.36528964,83989.0,83988.0,0.5670247]
[1743192519658,0.85814728,83989.0,83988.0,0.5670247]
[1743192520219,0.74388964,83989.0,83988.0,0.5670247]
[1743192521426,0.75297758,83989.0,83988.0,0.5670247]
[1743192524050,0.67437758,83989.0,83988.0,0.5670247]
[1743192524858,0.67337758,83989.0,83988.0,0.5670247]
[1743192525326,0.67837758,83989.0,83988.0,0.5670247]
[1743192525843,0.67637758,83989.0,83988.0,0.5670247]
[1743192526257,0.67837758,83989.0,83988.0,0.0003847]
[1743192530264,0.79263522,83989.0,83988.0,0.0003847]
[1743192530439,0.67837758,83989.0,83988.0,0.0003847]
[1743192532910,0.69705297,83989.0,83988.0,0.0003847]
[1743192533247,0.68796503,83989.0,83988.0,0.0003847]
[1743192533892,0.66928964,83989.0,83988.0,0.0003847]
[1743192534312,0.80222254,83989.0,83988.0,0.0003847]
[1743192534874,0.79922254,83989.0,83988.0,0.0003847]
[1743192535078,0.79722254,83989.0,83988.0,0.0003847]
[1743192535285,0.80122254,83989.0,83988.0,0.0003847]
[1743192535549,0.77854728,83989.0,83988.0,0.0003847]
[1743192535902,0.79429462,83989.0,83988.0,0.0003847]
[1743192536310,0.68003698,83989.0,83988.0,0.0003847]
[1743192537764,0.67703698,83989.0,83988.0,0.0003847]
[1743192538171,0.68003698,83989.0,83988.0,0.0003847]
[1743192540020,0.6987137,83989.0,83988.0,0.0003847]
[1743192541743,0.7777137,83989.0,83988.0,0.0003847]
[1743192541947,0.99197134,83989.0,83988.0,0.0003847]
[1743192542927,0.025,83983.0,83982.0,4e-07]
[1743192543184,0.69207256,83983.0,83982.0,0.00013353]
[1743192543424,0.68930764,83983.0,83982.0,0.00013353]
[1743192543655,0.80356528,83983.0,83982.0,0.00013353]
[1743192544491,0.80556528,83983.0,83982.0,0.00013353]
[1743192544715,0.80756528,83983.0,83982.0,0.00013353]
[1743192549602,0.250097,83967.0,83966.0,0.56724]
[1743192549807,0.550112,83962.0,83961.0,0.0003378]
[1743192549982,0.66436964,83962.0,83961.0,0.00038218]
[1743192550985,0.68305286,83962.0,83961.0,0.00038218]
[1743192551517,0.68305286,83962.0,83961.0,0.00238218]
[1743192551718,0.80905241,83962.0,83961.0,0.00538218]
[1743192552238,0.80905241,83962.0,83960.0,7.8e-07]
[1743192552239,0.550115,83961.0,83960.0,7.8e-07]
[1743192552419,0.66437264,83961.0,83960.0,7.8e-07]
[1743192552983,0.80257264,83961.0,83960.0,7.8e-07]
[1743192553272,0.91683028,83961.0,83960.0,7.8e-07]
[1743192554602,0.91883028,83961.0,83960.0,7.8e-07]
[1743192554862,0.91983028,83961.0,83960.0,7.8e-07]
[1743192555875,0.92861046,83961.0,83960.0,7.8e-07]
[1743192558322,1.03572171,83961.0,83960.0,7.8e-07]
[1743192559495,1.0544067,83961.0,83960.0,7.8e-07]
[1743192560791,1.0540067,83961.0,83960.0,7.8e-07]
[1743192562166,0.94689545,83961.0,83960.0,7.8e-07]
[1743192562378,0.94677545,83961.0,83960.0,7.8e-07]
[1743192564980,0.92809046,83961.0,83960.0,7.8e-07]
[1743192566708,0.92709046,83961.0,83960.0,7.8e-07]
[1743192566913,0.93109046,83961.0,83960.0,7.8e-07]
[1743192567117,0.92909046,83961.0,83960.0,7.8e-07]
[1743192567505,0.93309046,83961.0,83960.0,7.8e-07]
[1743192568227,0.95177579,83961.0,83960.0,7.8e-07]
[1743192568679,0.93309046,83961.0,83960.0,7.8e-07]
[1743192569194,0.93342846,83961.0,83960.0,7.8e-07]
[1743192571264,0.250184,83938.0,83937.0,0.03725118]
[1743192571600,0.250184,83938.0,83937.0,0.03769535]
[1743192572633,0.26886984,83938.0,83937.0,0.03769535]
[1743192572988,0.26886984,83938.0,83937.0,0.03869535]
[1743192573599,0.03072359,83938.0,83937.0,0.03769535]
[1743192574000,0.26899459,83938.0,83937.0,0.03769535]
[1743192574281,0.26999459,83938.0,83937.0,0.03769535]
[1743192574485,0.28190759,83938.0,83937.0,0.03769535]
[1743192574949,0.26322175,83938.0,83937.0,0.03769535]
[1743192575501,0.36340592,83938.0,83937.0,0.03769535]
[1743192576262,0.26322175,83938.0,83937.0,0.03769535]
[1743192576471,0.67747939,83938.0,83937.0,0.03769535]
[1743192576676,0.67647939,83938.0,83937.0,0.03769535]
[1743192576921,0.67747939,83938.0,83937.0,0.03769535]
[1743192577559,0.70159119,83938.0,83937.0,0.03769535]
[1743192577717,0.81584883,83938.0,83937.0,0.03769535]
[1743192577913,0.8345351,83938.0,83937.0,0.03769535]
[1743192578122,0.72027746,83938.0,83937.0,0.03769535]
[1743192579124,0.70159119,83938.0,83937.0,0.03769535]
[1743192580309,0.67747939,83938.0,83937.0,0.03769535]
[1743192582098,0.67747939,83938.0,83937.0,0.03786435]
[1743192582454,0.69650444,83938.0,83937.0,0.03786435]
[1743192584859,0.67781739,83938.0,83937.0,0.03786435]
[1743192585100,0.70211946,83938.0,83937.0,0.03786435]
[1743192586468,0.67781739,83938.0,83937.0,0.03786435]
[1743192587776,0.79207503,83938.0,83937.0,0.03786435]
[1743192588680,0.67781739,83938.0,83937.0,0.03786435]
[1743192589433,0.69650365,83938.0,83937.0,0.03786435]
[1743192591696,0.67781739,83938.0,83937.0,0.03786435]
[1743192591915,0.69650374,83938.0,83937.0,0.03786435]
[1743192592123,0.69850374,83938.0,83937.0,0.03786435]
[1743192592647,0.81276138,83938.0,83937.0,0.03786435]
[1743192592857,0.81176138,83938.0,83937.0,0.03786435]
[1743192593222,0.81376138,83938.0,83937.0,0.03786435]
[1743192594850,0.79507503,83938.0,83937.0,0.03786435]
[1743192598349,0.81376146,83938.0,83937.0,0.03786435]
[1743192598490,0.81376146,83938.0,83937.0,0.00061317]
[1743192599947,0.78781071,83938.0,83937.0,0.00061317]
[1743192600145,0.78581071,83938.0,83937.0,0.00061317]
[1743192600354,0.81468108,83938.0,83937.0,0.00061317]
[1743192601085,0.70042344,83938.0,83937.0,0.00061317]
[1743192601459,0.69842344,83938.0,83937.0,0.00061317]
[1743192601862,0.70142344,83938.0,83937.0,0.00061317]
[1743192604912,0.68273701,83938.0,83937.0,0.00061317]
[1743192606367,0.011914,83932.0,83930.0,9.7e-07]
[1743192606601,0.65021,83929.0,83928.0,0.0003372]
[1743192606803,0.90026764,83929.0,83928.0,0.0003372]
[1743192606938,0.90026764,83929.0,83928.0,0.00047037]
[1743192607136,1.00090121,83929.0,83928.0,0.00047037]
[1743192608205,2.20557118,83929.0,83928.0,0.00047037]
[1743192608683,2.21057118,83929.0,83928.0,0.00047037]
[1743192610279,1.67413761,83929.0,83928.0,0.00047037]
[1743192610487,0.52927973,83929.0,83928.0,0.00047037]
[1743192610688,0.52927973,83929.0,83928.0,0.04917037]
[1743192611069,0.82927973,83929.0,83928.0,0.04917037]
[1743192611613,0.52923973,83929.0,83928.0,0.04917037]
[1743192611973,0.82923973,83929.0,83928.0,0.04917037]
[1743192612519,0.94349737,83929.0,83928.0,0.04917037]
[1743192614918,0.92480528,83929.0,83928.0,0.04917037]
[1743192619475,0.81054764,83929.0,83928.0,0.04917037]
[1743192619676,0.82923785,83929.0,83928.0,0.04917037]
[1743192623550,0.69315785,83929.0,83928.0,0.04917037]
[1743192623770,0.82867785,83929.0,83928.0,0.04917037]
[1743192625105,0.80998764,83929.0,83928.0,0.04917037]
[1743192625309,0.92424528,83929.0,83928.0,0.04917037]
[1743192625606,0.80998764,83929.0,83928.0,0.04917037]
[1743192628004,0.81032524,83929.0,83928.0,0.04917037]
[1743192628382,0.82901546,83929.0,83928.0,0.04917037]
[1743192628582,0.02902782,83929.0,83928.0,0.29938337]
[1743192628759,0.02902782,83929.0,83928.0,0.37778337]
[1743192629128,0.02902782,83929.0,83928.0,0.12757037]
[1743192629373,0.02902782,83929.0,83928.0,0.37778337]
[1743192629910,0.02402782,83929.0,83928.0,0.37778337]
[1743192630130,0.02202782,83929.0,83928.0,0.37778337]
[1743192630336,0.02202782,83929.0,83928.0,0.36586937]
[1743192630538,0.02502782,83929.0,83928.0,0.37778337]